bitfinex-derivatives/quotes_ETHF0:USTF0_20250929
["timestamp","ask_amount","ask_price","bid_price","bid_amount"]
[1759180704731,0.42608,4221.9,4221.8,1.24559]
[1759180704930,0.42608,4221.9,4221.5,0.14282685]
[1759180704931,40.8,4222.4,4222.3,0.2458]
[1759180705123,0.48,4222.4,4222.3,0.8195]
[1759180706435,0.90603,4222.4,4222.3,0.8195]
[1759180706633,0.90603,4222.4,4222.3,1.24554]
[1759180706828,0.42602,4222.6,4222.5,0.9579]
[1759180707030,0.66502,4222.6,4222.5,0.9579]
[1759180707835,0.66502,4222.6,4222.5,1.38392]
[1759180708638,0.66502,4222.6,4222.5,0.9579]
[1759180712136,0.42598,4222.9,4222.8,1.24549]
[1759180712332,0.42598,4222.9,4222.8,0.8195]
[1759180712532,0.66498,4222.9,4222.8,1.24549]
[1759180714133,0.239,4223.1,4223.0,0.9579]
[1759180714339,1.24690518,4223.7,4223.6,0.2458]
[1759180714540,42.28790518,4223.7,4223.6,0.5872]
[1759180715231,1.48790518,4223.7,4223.6,0.5872]
[1759180715633,42.28790518,4223.7,4223.6,0.5872]
[1759180717341,42.28790518,4223.7,4223.6,0.3414]
[1759180717847,0.66496,4223.1,4223.0,0.9579]
[1759180718941,1.24476,4223.1,4223.0,0.3414]
[1759180719134,1.24479,4222.8,4222.7,0.5872]
[1759180720147,1.24479,4222.8,4222.7,0.8195]
[1759180720540,1.24479,4222.8,4222.7,0.5872]
[1759180720939,1.24479,4222.8,4222.7,0.3414]
[1759180721446,1.24479,4222.8,4222.5,0.1384]
[1759180721447,0.42601,4222.6,4222.5,0.1384]
[1759180721648,1.24481,4222.6,4222.5,0.3842]
[1759180722040,1.24481,4222.6,4222.5,0.7256]
[1759180722440,1.24481,4222.6,4222.5,0.9579]
[1759180722643,0.90231,4222.6,4222.5,1.38392]
[1759180723044,0.90231,4222.6,4222.5,0.9579]
[1759180723747,1.24481,4222.6,4222.5,0.9579]
[1759180724748,0.90231,4222.6,4222.5,1.38392]
[1759180725742,0.241,4223.0,4222.5,0.6165]
[1759180726049,1.24477,4223.0,4222.9,0.8195]
[1759180726441,0.90227,4223.0,4222.9,0.8195]
[1759180729846,1.24477,4223.0,4222.9,0.8195]
[1759180730047,0.8188,4223.0,4222.9,0.8195]
[1759180730244,1.24477,4223.0,4222.9,0.8195]
[1759180731953,0.90227,4223.0,4222.9,1.24548]
[1759180732142,0.66497,4223.0,4222.9,1.24548]
[1759180732854,0.66497,4223.0,4222.9,0.8195]
[1759180735748,0.90227,4223.0,4222.9,0.8195]
[1759180735952,1.24837,4223.0,4222.9,0.8195]
[1759180740849,0.42599,4222.8,4222.7,0.83593185]
[1759180741049,0.646,4222.7,4222.6,0.83593185]
[1759180741255,1.22301,4222.6,4222.5,1.17413185]
[1759180741655,1.22301,4222.6,4222.5,0.83593185]
[1759180741858,1.22302,4222.5,4222.4,1.29483185]
[1759180742161,0.64599,4222.8,4222.7,0.4589]
[1759180742355,0.42601,4222.6,4222.5,0.84055801]
[1759180742552,1.22303,4222.4,4222.3,0.84055801]
[1759180742750,0.797,4222.2,4222.1,0.84055801]
[1759180743057,1.22305,4222.2,4222.1,1.17875801]
[1759180743256,1.22305,4222.2,4222.1,0.5601]
[1759180743759,0.87695,4222.2,4222.1,1.63765801]
[1759180744161,1.22305,4222.2,4222.1,1.63765801]
[1759180744556,1.22305,4222.2,4222.1,0.7971]
[1759180746657,0.797,4222.1,4222.0,0.84055801]
[1759180746853,0.66605,4222.2,4221.8,1.26664801]
[1759180746854,1.22307,4222.0,4221.8,1.26664801]
[1759180747055,1.22307,4222.0,4221.9,0.84055801]
[1759180747359,1.22307,4222.0,4221.9,0.3382]
[1759180747861,1.22307,4222.0,4221.9,0.5601]
[1759180750058,0.22,4222.0,4221.9,1.22318]
[1759180750261,0.3461,4222.3,4222.2,0.7971]
[1759180750262,0.64604,4222.3,4222.2,0.7971]
[1759180750462,0.88604,4222.3,4222.2,0.7971]
[1759180750661,0.64604,4222.3,4222.2,0.7971]
[1759180750858,0.88604,4222.3,4222.2,0.7971]
[1759180751769,0.64604,4222.3,4222.2,0.7971]
[1759180751964,0.42603,4222.4,4222.3,0.42603]
[1759180752169,0.42603,4222.4,4222.3,1.22313]
[1759180754068,0.42603,4222.4,4222.3,0.7971]
[1759180754473,0.42603,4222.4,4222.3,1.22314]
[1759180757172,0.24,4222.7,4222.3,1.22314]
[1759180757474,0.42601,4222.6,4222.5,1.36321]
[1759180758872,41.1506,4223.2,4222.8,1.23029]
[1759180758873,0.42598,4222.9,4222.8,1.23029]
[1759180759778,0.42598,4222.9,4222.8,0.8043]
[1759180760079,0.64498,4222.9,4222.8,0.8043]
[1759180761679,0.219,4222.5,4222.4,0.84055801]
[1759180761879,0.42604,4222.3,4222.2,0.84055801]
[1759180762073,0.42608,4221.9,4221.8,0.84055801]
[1759180762277,1.22658,4221.9,4221.8,0.8043]
[1759180764972,0.42607,4222.0,4221.8,0.8043]
[1759180765176,0.2378,4222.1,4222.0,0.1389]
[1759180765377,0.42606,4222.1,4222.0,0.5967]
[1759180765776,0.42606,4222.1,4222.0,0.9273]
[1759180765975,1.24639,4222.8,4222.7,0.2356]
[1759180766279,0.66386,4222.1,4222.0,0.9273]
[1759180767474,1.24646,4222.1,4222.0,0.9273]
[1759180768583,0.90136,4222.1,4222.0,0.9273]
[1759180771279,0.66386,4222.1,4222.0,0.9273]
[1759180772888,0.90136,4222.1,4222.0,0.9273]
[1759180773278,1.24646,4222.1,4222.0,0.9273]
[1759180773479,1.24646,4222.1,4222.0,0.7884]
[1759180773684,1.24646,4222.1,4222.0,0.5662]
[1759180774792,1.24646,4222.1,4222.0,0.9273]
[1759180775291,1.24646,4222.1,4222.0,0.3306]
[1759180775889,0.6639,4221.7,4221.6,0.88391]
[1759180776199,0.9014,4221.7,4221.6,1.21451]
[1759180776993,1.2465,4221.7,4221.6,0.7884]
[1759180777191,1.2465,4221.7,4221.6,0.3306]
[1759180777393,1.2465,4221.7,4221.6,0.5662]
[1759180778297,1.24651,4221.6,4221.5,0.00192685]
[1759180782298,1.24651,4221.6,4221.5,0.33252685]
[1759180782597,1.24651,4221.6,4221.5,0.56812685]
[1759180784699,1.24651,4221.6,4221.5,0.92922685]
[1759180786096,1.24651,4221.6,4221.5,0.79032685]
[1759180786600,1.24651,4221.6,4221.5,0.56812685]
[1759180787602,1.24651,4221.6,4221.5,0.92922685]
[1759180788003,1.24651,4221.6,4221.5,0.79032685]
[1759180792810,1.24651,4221.6,4221.5,0.92922685]
[1759180796105,1.24651,4221.6,4221.5,0.79032685]
[1759180796298,1.24651,4221.6,4221.5,0.56812685]
[1759180797606,0.42608,4221.7,4221.5,0.93562685]
[1759180797905,1.22218,4221.7,4221.6,0.7664]
[1759180800607,0.337,4222.3,4222.2,0.2127]
[1759180800809,1.06479,4223.4,4222.2,1.19243]
[1759180801012,0.88507,4222.8,4222.7,0.4464]
[1759180801208,0.2258,4222.2,4222.1,1.46376138]
[1759180801406,1.22214,4222.1,4222.0,1.25106138]
[1759180801608,0.42606,4221.9,4221.8,1.25106138]
[1759180801809,1.22216,4221.9,4221.8,0.2127]
[1759180802008,0.76308,4221.7,4221.6,0.2127]
[1759180802203,0.76308,4221.7,4221.6,2.01746138]
[1759180802204,0.2258,4221.7,4221.6,2.01746138]
[1759180802410,0.65181,4222.1,4222.0,0.9002]
[1759180802613,1.22205,4222.7,4222.6,0.2127]
[1759180802809,1.94138792,4222.7,4222.6,0.5327]
[1759180803510,0.47933792,4222.7,4222.6,0.7664]
[1759180803714,0.65175,4222.7,4222.6,0.7664]
[1759180803910,1.22205,4222.7,4222.6,0.7664]
[1759180804214,0.88505,4222.7,4222.6,0.7664]
[1759180804413,0.2258,4222.7,4222.6,1.19236]
[1759180805509,0.2258,4222.7,4222.6,0.7664]
[1759180805815,0.2258,4222.7,4222.6,1.19236]
[1759180806111,0.2258,4222.7,4222.6,0.7664]
[1759180806316,1.22205,4222.7,4222.6,0.7664]
[1759180808317,1.22205,4222.7,4222.6,1.19237]
[1759180808814,0.7961,4222.3,4222.2,0.87241]
[1759180809423,0.7961,4222.3,4222.2,1.19241]
[1759180809619,0.4591,4222.3,4222.2,1.19241]
[1759180810221,0.8851,4222.3,4222.2,1.19241]
[1759180810519,0.8851,4222.3,4222.2,0.7664]
[1759180810520,1.2221,4222.3,4222.2,0.7664]
[1759180811114,1.2221,4222.3,4222.2,1.19241]
[1759180812020,0.8851,4222.3,4222.2,1.19241]
[1759180812318,0.8851,4222.3,4222.2,0.7664]
[1759180812713,1.2221,4222.3,4222.2,1.19241]
[1759180815127,0.8851,4222.3,4222.2,1.19241]
[1759180815318,1.19633,4222.0,4221.9,0.2163]
[1759180815515,1.43633,4222.0,4221.9,0.2163]
[1759180815916,1.43633,4222.0,4221.9,0.5388]
[1759180817017,1.43633,4222.0,4221.5,1.38678823]
[1759180817018,0.64087,4221.6,4221.5,0.35202685]
[1759180817212,1.43637,4221.6,4221.5,0.32442685]
[1759180818420,1.43637,4221.6,4221.5,0.00192685]
[1759180819421,1.43637,4221.6,4221.5,0.90842685]
[1759180819616,1.43637,4221.6,4221.5,0.54072685]
[1759180819929,1.43637,4221.6,4221.5,0.00192685]
[1759180820428,1.43637,4221.6,4221.5,0.54072685]
[1759180821026,1.19637,4221.6,4221.5,0.54072685]
[1759180821228,1.43637,4221.6,4221.5,0.54072685]
[1759180821625,1.19637,4221.6,4221.5,0.54072685]
[1759180822128,1.43637,4221.6,4221.5,0.54072685]
[1759180823029,1.43637,4221.6,4221.5,0.90842685]
[1759180823623,0.64087,4221.6,4221.5,0.90842685]
[1759180823833,1.43637,4221.6,4221.5,0.90842685]
[1759180824030,1.10737,4221.6,4221.5,0.90842685]
[1759180825925,1.42987,4221.6,4221.5,0.90842685]
[1759180826425,1.10737,4221.6,4221.5,0.90842685]
[1759180827322,1.42987,4221.6,4221.5,0.00192685]
[1759180827830,1.42987,4221.6,4221.5,0.34492685]
[1759180828629,1.42987,4221.6,4221.5,0.00192685]
[1759180831235,6.42987,4221.6,4221.5,0.00192685]
[1759180832923,6.42987,4221.6,4220.5,1.38486138]
[1759180832924,0.88557,4220.6,4220.5,0.583]
[1759180833137,1.44807,4220.6,4220.5,0.4492]
[1759180833332,0.4594,4220.2,4220.1,0.225]
[1759180833529,1.12561,4220.2,4220.1,0.568]
[1759180834037,1.45015847,4220.2,4220.1,0.34513292]
[1759180834230,1.45015847,4220.2,4220.1,0.00213292]
[1759180835433,1.45015847,4220.2,4220.1,0.34513292]
[1759180836334,1.45015847,4220.2,4220.1,0.99635292]
[1759180837229,1.02394847,4220.2,4220.1,0.99635292]
[1759180837639,1.45015847,4220.2,4220.1,1.22055292]
[1759180837836,1.02394847,4220.2,4220.1,1.22055292]
[1759180838037,1.45015847,4220.2,4220.1,1.22055292]
[1759180838234,0.46144847,4220.2,4220.1,1.22055292]
[1759180838438,0.00204847,4220.2,4220.1,1.22055292]
[1759180838835,0.00204847,4220.2,4220.1,6.22055292]
[1759180839534,0.00204847,4220.2,4220.1,1.22055292]
[1759180839735,0.00204847,4220.2,4220.1,6.22055292]
[1759180840536,0.00204847,4220.2,4220.1,1.22055292]
[1759180840740,0.00204847,4220.2,4220.1,6.22055292]
[1759180841037,0.00204847,4220.2,4220.1,7.4716143]
[1759180841229,0.66612,4221.1,4221.0,1.35053]
[1759180841425,0.3225,4221.5,4221.0,1.35053]
[1759180841426,0.42611,4221.3,4221.0,1.35053]
[1759180841635,0.23,4221.3,4221.2,1.21831]
[1759180841834,0.66609,4221.4,4221.3,0.8753]
[1759180842038,0.66609,4221.4,4221.3,1.2183]
[1759180842235,0.66786824,4221.4,4221.3,1.2183]
[1759180842439,1.44976824,4221.4,4221.3,1.2183]
[1759180843031,0.47177824,4221.4,4221.3,1.2183]
[1759180843236,0.24177824,4221.4,4221.3,1.2183]
[1759180844141,0.89786824,4221.4,4221.3,1.2183]
[1759180845643,0.00177824,4221.4,4221.3,1.2183]
[1759180845835,0.42786824,4221.4,4221.3,1.2183]
[1759180846436,0.00177824,4221.4,4221.3,1.2183]
[1759180846841,0.42786824,4221.4,4221.3,0.7922]
[1759180847142,0.65786824,4221.4,4221.3,1.2183]
[1759180849038,0.23177824,4221.4,4221.3,1.2183]
[1759180849345,0.65786824,4221.4,4221.3,1.2183]
[1759180853444,0.23177824,4221.4,4221.3,1.2183]
[1759180853650,0.42786824,4221.4,4221.3,1.2183]
[1759180854047,0.65786824,4221.4,4221.3,1.2183]
[1759180854853,0.42786824,4221.4,4221.3,1.2183]
[1759180856348,0.64906824,4221.4,4221.3,1.2183]
[1759180856544,0.64906824,4221.4,4221.3,0.7922]
[1759180856950,0.64906824,4221.4,4221.3,1.2183]
[1759180858147,0.42786824,4221.4,4221.3,1.2183]
[1759180858548,0.64906824,4221.4,4221.3,1.2183]
[1759180858945,0.64906824,4221.4,4221.3,0.7922]
[1759180859153,0.64906824,4221.4,4221.3,1.2183]
[1759180859652,0.64906824,4221.4,4221.3,0.7922]
[1759180860750,1.18356824,4221.4,4221.3,0.568]
[1759180860951,1.18184,4220.9,4220.8,0.3417]
[1759180861154,1.42184,4220.9,4220.8,0.5679]
[1759180862046,0.6871,4220.9,4220.8,0.7863]
[1759180862252,0.4261,4221.3,4221.2,0.7863]
[1759180862453,0.6473,4221.3,4221.2,0.7863]
[1759180862651,1.1818,4221.3,4221.2,0.7863]
[1759180866659,0.6473,4221.3,4221.2,0.7863]
[1759180867562,0.42786824,4221.4,4221.3,0.7863]
[1759180868261,0.64906824,4221.4,4221.3,0.7863]
[1759180871657,0.64906824,4221.4,4221.3,1.2124]
[1759180872258,0.64906824,4221.4,4221.3,2.48311452]
[1759180873555,0.42786824,4221.4,4221.3,2.48311452]
[1759180876561,0.00177824,4221.4,4221.3,2.48311452]
[1759180876763,0.00177824,4221.4,4221.3,1.2124]
[1759180880872,0.42786824,4221.4,4221.3,1.2124]
[1759180882465,1.15846824,4221.4,4221.3,2.06115185]
[1759180883172,0.84756824,4221.4,4221.3,2.06115185]
[1759180883867,0.84756824,4221.4,4221.3,2.48725185]
[1759180884070,0.42786824,4221.4,4221.3,1.2124]
[1759180884768,0.64886824,4221.4,4221.3,1.2124]
[1759180886269,0.64886824,4221.4,4221.3,2.48714384]
[1759180888673,0.00177824,4221.4,4221.3,1.2124]
[1759180892781,0.00177824,4221.4,4221.3,2.88383814]
[1759180893075,0.00177824,4221.4,4221.3,7.88383814]
[1759180893281,0.00177824,4221.4,4221.3,6.2124]
[1759180894982,0.221,4222.8,4222.7,0.4384]
[1759180895178,1.89774889,4223.1,4222.9,0.42593]
[1759180895380,2.11874889,4223.1,4223.0,0.8899]
[1759180895784,0.221,4223.1,4223.0,0.8899]
[1759180896085,0.2235981,4223.1,4223.0,0.8899]
[1759180898486,0.6495181,4223.1,4223.0,1.31583]
[1759180898881,0.2235981,4223.1,4223.0,1.31583]
[1759180899483,0.6495181,4223.1,4223.0,1.31583]
[1759180900979,0.6495181,4223.1,4223.0,0.8899]
[1759180901888,0.9734181,4223.1,4223.0,0.8899]
[1759180902791,0.9734181,4223.1,4223.0,1.31583]
[1759180902991,0.9734181,4223.1,4223.0,0.8899]
[1759180903194,0.9734181,4223.1,4223.0,1.31583]
[1759180906791,0.6495181,4223.1,4223.0,1.31583]
[1759180906994,0.2235981,4223.1,4223.0,1.31583]
[1759180907194,0.6495181,4223.1,4223.0,1.31583]
[1759180911996,0.0025981,4223.1,4223.0,1.31583]
[1759180913495,0.0025981,4223.1,4223.0,6.31583]
[1759180913701,0.221,4224.1,4224.0,1.31572]
[1759180914292,0.4239,4224.8,4224.7,0.4385]
[1759180914496,1.39954,4224.8,4224.7,0.7496]
[1759180914792,1.09239409,4224.8,4224.7,0.75243306]
[1759180915406,1.40229409,4224.8,4224.7,0.75243306]
[1759180916104,1.16229409,4224.8,4224.7,0.75243306]
[1759180916307,1.40229409,4224.8,4224.7,0.75243306]
[1759180916492,1.40229409,4224.8,4224.7,0.00283306]
[1759180917600,0.00275409,4224.8,4224.7,0.75243306]
[1759180917903,0.22195409,4224.8,4224.7,0.75243306]
[1759180918209,0.73655409,4224.8,4224.7,0.75243306]
[1759180919304,0.73655409,4224.8,4224.7,0.00283306]
[1759180919901,5.73655409,4224.8,4224.7,0.00283306]
[1759180920208,1.15963,4224.0,4223.9,0.3111]
[1759180920406,0.42586,4223.7,4223.6,0.5242]
[1759180920603,1.15966,4223.7,4223.6,0.7496]
[1759180921104,6.15966,4223.7,4223.6,0.00307525]
[1759180922106,1.15972,4223.1,4223.0,0.3111]
[1759180923007,1.15972,4223.1,4223.0,0.31337966]
[1759180924909,1.15972,4223.1,4223.0,0.52647966]
[1759180927710,1.15972,4223.1,4223.0,0.00227966]
[1759180928516,1.15972,4223.1,4223.0,0.31337966]
[1759180930419,1.15972,4223.1,4223.0,0.00227966]
[1759180933014,1.15972,4223.1,4222.2,0.3111]
[1759180933015,1.1598,4222.3,4222.2,0.3111]
[1759180933316,1.1598,4222.3,4222.2,0.5242]
[1759180933915,1.1598,4222.3,4222.2,0.5259483]
[1759180934416,1.1598,4222.3,4222.2,0.9519583]
[1759180934621,1.1598,4222.3,4222.2,1.1773583]
[1759180937620,1.1598,4222.3,4222.2,0.7513483]
[1759180938620,1.1598,4222.3,4222.2,1.1773583]
[1759180939022,41.22597,4222.6,4222.5,1.30658]
[1759180939619,41.96867,4222.6,4222.5,0.5498]
[1759180939820,1.16867,4222.6,4222.5,0.5498]
[1759180941621,1.16867,4222.6,4222.5,0.8806]
[1759180943816,1.16867,4222.6,4222.5,1.30658]
[1759180944924,1.1727,4223.3,4223.2,0.4405]
[1759180945114,1.4127,4223.3,4223.2,0.3193]
[1759180945416,42.2127,4223.3,4223.2,0.3193]
[1759180945814,42.2127,4223.3,4223.2,0.5405]
[1759180946720,41.9727,4223.3,4223.2,0.7598]
[1759180946918,1.0882,4223.3,4223.2,1.18571]
[1759180947115,1.0882,4223.3,4223.2,0.7598]
[1759180947711,0.6623,4223.3,4223.2,1.18571]
[1759180948024,41.43458,4223.5,4223.4,0.7598]
[1759180948317,41.67458,4223.5,4223.4,1.18569]
[1759180948520,0.3245,4223.9,4223.5,0.1241]
[1759180948718,0.00275409,4224.8,4224.0,0.1241]
[1759180948719,0.2087,4224.1,4224.0,0.1241]
[1759180948917,0.6623,4224.1,4224.0,0.5646]
[1759180949118,0.9868,4224.1,4224.0,0.5646]
[1759180949320,0.9868,4224.1,4224.0,0.8839]
[1759180949716,0.4487,4224.1,4224.0,0.8839]
[1759180951522,0.6623,4224.1,4224.0,0.8839]
[1759180951828,0.9868,4224.1,4224.0,0.8839]
[1759180952029,0.7468,4224.1,4224.0,0.8839]
[1759180952220,0.9868,4224.1,4224.0,0.8839]
[1759180952525,0.6623,4224.1,4224.0,0.8839]
[1759180952720,40.8,4224.3,4224.1,0.42582]
[1759180952927,0.3245,4224.5,4224.4,0.7598]
[1759180952928,1.17258,4224.5,4224.4,0.7598]
[1759180953126,1.41258,4224.5,4224.4,0.7598]
[1759180953323,0.2087,4224.5,4224.4,0.7598]
[1759180953528,0.4487,4224.5,4224.4,0.7598]
[1759180954023,0.24,4224.6,4224.5,0.77108]
[1759180954220,0.24,4224.6,4224.5,1.30968]
[1759180954427,0.4487,4224.6,4224.5,0.8839]
[1759180955331,0.87447,4224.6,4224.5,0.8839]
[1759180958727,0.63451,4224.2,4224.1,0.74511]
[1759180959033,0.4223,4224.2,4224.1,1.18561]
[1759180959328,0.2087,4224.2,4224.1,1.18561]
[1759180960633,0.63451,4224.2,4224.1,1.18561]
[1759180962331,0.63451,4224.2,4224.1,0.7598]
[1759180962538,1.17261,4224.2,4224.1,0.5405]
[1759180963431,1.17261,4224.2,4224.1,0.7598]
[1759180969833,1.17261,4224.2,4224.1,1.18562]
[1759180972130,0.3245,4224.7,4224.2,0.4405]
[1759180972335,0.66850409,4224.8,4224.7,0.7598]
[1759180972526,0.63720409,4224.8,4224.7,0.7598]
[1759180972732,0.00275409,4224.8,4224.7,1.18556]
[1759180973334,0.42850409,4224.8,4224.7,1.18556]
[1759180975537,0.00275409,4224.8,4224.7,1.18556]
[1759180975935,0.00275409,4224.8,4224.7,0.7598]
[1759180976138,0.00275409,4224.8,4224.7,1.18556]
[1759180978538,1.18280409,4224.8,4224.7,0.7598]
[1759180979646,1.18280409,4224.8,4224.7,1.18556]
[1759180980245,1.18280409,4224.8,4224.7,0.7598]
[1759180980445,1.18280409,4224.8,4224.7,1.18556]
[1759180981241,1.18280409,4224.8,4224.5,1.39709299]
[1759180981242,0.85787,4224.6,4224.5,0.5686]
[1759180981442,1.18007,4224.6,4224.5,0.5686]
[1759180981640,0.85787,4224.6,4224.5,0.5686]
[1759180981841,0.85787,4224.6,4224.5,0.879]
[1759180982346,0.85787,4224.6,4224.5,1.30478]
[1759180982547,0.64137,4224.6,4224.5,1.30478]
[1759180982747,0.42577,4224.6,4224.5,1.30478]
[1759180983147,0.00275409,4224.8,4224.7,0.7488]
[1759180984045,0.42850409,4224.8,4224.7,1.17456]
[1759180984339,0.00275409,4224.8,4224.7,1.17456]
[1759180986952,0.00275409,4224.8,4224.7,2.44755299]
[1759180987549,0.00275409,4224.8,4224.7,1.17456]
[1759180988952,0.42850409,4224.8,4224.7,1.17456]
[1759180989456,0.00275409,4224.8,4224.7,1.17456]
[1759180994155,0.42850409,4224.8,4224.7,1.17456]
[1759180994456,0.21835409,4224.8,4224.7,1.17456]
[1759180997055,0.64410409,4224.8,4224.7,1.17456]
[1759180997755,0.00275409,4224.8,4224.7,1.17456]
[1759181000257,0.42850409,4224.8,4224.7,1.17456]
[1759181002155,0.42850409,4224.8,4224.7,0.7488]
[1759181002456,1.18460409,4224.8,4224.7,0.7488]
[1759181002656,0.85140409,4224.8,4224.7,0.7488]
[1759181003552,1.18460409,4224.8,4224.7,0.7488]
[1759181004756,0.22235409,4224.8,4224.7,0.7488]
[1759181004961,0.00275409,4224.8,4224.7,0.7488]
[1759181005257,0.22495409,4224.8,4224.7,0.7488]
[1759181005454,0.00275409,4224.8,4224.7,0.7488]
[1759181007659,0.22495409,4224.8,4224.7,0.7488]
[1759181007859,0.22495409,4224.8,4224.7,2.02066096]
[1759181009464,0.65070409,4224.8,4224.7,2.02066096]
[1759181009665,0.22495409,4224.8,4224.7,2.44642096]
[1759181009862,0.65070409,4224.8,4224.7,2.44642096]
[1759181010366,0.22495409,4224.8,4224.7,2.44642096]
[1759181010666,0.65070409,4224.8,4224.7,2.44642096]
[1759181012357,0.65070409,4224.8,4224.7,1.17456]
[1759181012560,0.65070409,4224.8,4224.7,0.7488]
[1759181012762,0.86090409,4224.8,4224.7,2.02124687]
[1759181014355,0.86090409,4224.8,4224.7,0.7488]
[1759181017170,0.86090409,4224.8,4224.7,1.17456]
[1759181017469,0.86090409,4224.8,4224.7,0.7488]
[1759181018871,0.86090409,4224.8,4224.7,1.17456]
[1759181019074,0.86090409,4224.8,4224.7,0.7488]
[1759181021272,1.19590409,4224.8,4224.7,0.7488]
[1759181023371,0.86090409,4224.8,4224.7,0.7488]
[1759181024876,0.86090409,4224.8,4224.7,2.02190162]
[1759181025377,1.19590409,4224.8,4224.7,2.02190162]
[1759181027162,1.19590409,4224.8,4224.7,0.7488]
[1759181027677,1.19590409,4224.8,4224.7,0.5293]
[1759181030879,1.19315,4224.7,4224.6,1.59300162]
[1759181031070,0.42578,4224.4,4224.3,1.59300162]
[1759181031274,1.19318,4224.4,4224.3,0.3199]
[1759181032973,1.19318,4224.4,4224.3,0.5258]
[1759181033576,1.19318,4224.4,4224.3,0.3199]
[1759181034067,0.4324,4224.4,4224.1,1.59300162]
[1759181034273,1.1742,4224.2,4224.1,0.3199]
[1759181034581,1.1742,4224.2,4224.1,0.5358]
[1759181035177,0.32805409,4224.8,4224.5,0.1268]
[1759181035377,0.00275409,4224.8,4224.7,0.7386]
[1759181035579,0.45305409,4224.8,4224.7,0.7386]
[1759181035779,1.13853111,4224.8,4224.7,0.7386]
[1759181035983,1.88957111,4224.8,4224.7,0.7386]
[1759181042279,0.47643111,4224.8,4224.7,0.7386]
[1759181042486,0.42849409,4224.8,4224.7,1.16435]
[1759181043581,0.00275409,4224.8,4224.7,1.16435]
[1759181044677,0.00275409,4224.8,4224.7,7.43745162]
[1759181044883,0.00275409,4224.8,4224.7,6.16435]
[1759181052186,41.3643,4225.7,4224.7,6.16435]
[1759181052187,0.63696,4225.7,4225.6,0.7386]
[1759181052493,0.42566,4225.7,4225.6,0.7386]
[1759181052684,0.63696,4225.7,4225.6,0.7386]
[1759181053188,0.63983719,4225.7,4225.6,1.16635335]
[1759181053579,0.3253,4226.5,4226.4,0.2159]
[1759181053781,1.6475192,4226.5,4226.4,0.7386]
[1759181054587,1.64948761,4226.5,4226.4,0.7386]
[1759181057182,1.17593841,4226.5,4226.4,0.7386]
[1759181066999,1.41493841,4226.5,4226.4,0.7386]
[1759181073306,1.88724919,4226.5,4226.4,0.7386]
[1759181077005,1.18945,4225.7,4225.6,0.52539335]
[1759181077209,0.239,4225.7,4225.6,0.74689335]
[1759181077397,0.239,4225.7,4225.6,2.01441502]
[1759181077602,0.239,4225.7,4225.6,2.44007502]
[1759181077909,40.8,4226.2,4225.9,0.7448]
[1759181077910,0.64213,4226.0,4225.9,0.7448]
[1759181078110,0.66463,4226.0,4225.9,1.17043]
[1759181078308,0.66463,4226.0,4225.9,0.7448]
[1759181080298,0.66463,4226.0,4225.9,1.17043]
[1759181081410,0.66463,4226.0,4225.9,0.7448]
[1759181082508,0.42563,4226.0,4225.9,0.7448]
[1759181083410,0.42563,4226.0,4225.9,2.01232167]
[1759181083918,0.42563,4226.0,4225.9,2.43795167]
[1759181085508,0.42563,4226.0,4225.9,2.01232167]
[1759181085710,0.64213,4226.0,4225.9,2.01232167]
[1759181087014,0.64213,4226.0,4225.9,2.43795167]
[1759181087616,0.64213,4226.0,4225.9,2.01232167]
[1759181093618,0.86683,4226.0,4225.9,1.79082167]
[1759181093820,1.18943,4226.0,4225.9,0.5233]
[1759181094121,1.66291345,4226.0,4225.9,0.5233]
[1759181094821,1.15844,4225.8,4225.7,1.26752167]
[1759181095016,0.63895,4225.7,4225.6,1.26961502]
[1759181095218,1.39745,4225.7,4225.6,1.59631502]
[1759181095623,1.39745,4225.7,4225.6,1.81841502]
[1759181095820,1.39745,4225.7,4225.6,1.59631502]
[1759181096120,1.39745,4225.7,4225.6,1.81841502]
[1759181096320,1.39745,4225.7,4225.6,0.55089335]
[1759181098321,1.39745,4225.7,4225.6,0.00209335]
[1759181098621,1.87195585,4225.7,4225.6,0.00209335]
[1759181099322,1.87195585,4225.7,4225.6,0.32879335]
[1759181100823,1.87195585,4225.7,4225.6,0.55089335]
[1759181101025,1.63295585,4225.7,4225.6,0.75789335]
[1759181101226,1.55965585,4225.7,4225.6,0.75789335]
[1759181102822,1.32065585,4225.7,4225.6,0.75789335]
[1759181103024,0.87795,4225.7,4225.6,0.75789335]
[1759181105926,0.63895,4225.7,4225.6,0.75789335]
[1759181106131,0.87795,4225.7,4225.6,0.75789335]
[1759181109932,0.42565,4225.7,4225.6,0.75789335]
[1759181110130,0.66465,4225.7,4225.6,0.75789335]
[1759181110729,0.87795,4225.7,4225.6,0.75789335]
[1759181112233,0.87795,4225.7,4225.6,1.18355335]
[1759181113330,0.3123,4226.0,4225.6,0.75789335]
[1759181113535,0.21526841,4226.5,4226.4,0.4291]
[1759181113832,1.87335387,4226.5,4226.4,0.7558]
[1759181116331,1.63435387,4226.5,4226.4,0.7558]
[1759181116633,1.87335387,4226.5,4226.4,0.7558]
[1759181117437,1.63435387,4226.5,4226.4,0.7558]
[1759181117636,1.87335387,4226.5,4226.4,0.7558]
[1759181120543,1.63435387,4226.5,4226.4,0.7558]
[1759181120744,1.87335387,4226.5,4226.4,0.5488]
[1759181121946,1.87335387,4226.5,4226.4,0.3267]
[1759181122545,1.63435387,4226.5,4226.4,0.3267]
[1759181122846,1.87335387,4226.5,4226.4,0.3267]
[1759181123340,0.2184,4225.8,4225.7,1.48462167]
[1759181123539,1.18954,4225.8,4225.7,0.2171]
[1759181123734,1.18954,4225.8,4225.7,0.4297]
[1759181124045,0.85854,4225.8,4225.7,0.734]
[1759181126948,0.42564,4225.8,4225.7,1.15965]
[1759181127343,0.42564,4225.8,4225.7,0.734]
[1759181127546,0.42564,4225.8,4225.7,1.15965]
[1759181129146,0.239,4226.1,4226.0,0.75292]